bitfinex/quotes_ETHUSD_20250903
["timestamp","ask_amount","ask_price","bid_price","bid_amount"]
[1756873085481,7.54274169,4323.3,4323.2,0.004]
[1756873085701,7.11474169,4323.3,4323.2,0.004]
[1756873087017,9.42778959,4323.3,4323.2,0.004]
[1756873087193,9.42678959,4323.3,4323.2,0.004]
[1756873090023,7.11374169,4323.3,4323.2,0.004]
[1756873090219,7.11174169,4323.3,4323.2,0.0489]
[1756873090826,7.11174169,4323.3,4323.2,2.3620014]
[1756873090827,0.20874169,4323.3,4323.2,2.3620014]
[1756873091119,4.018,4323.3,4323.2,2.98912076]
[1756873091323,3.902,4323.3,4323.2,3.10512076]
[1756873091524,3.902,4323.3,4323.2,0.63281936]
[1756873091689,4.018,4323.3,4323.2,2.3171014]
[1756873091894,4.018,4323.3,4323.2,2.3620014]
[1756873092321,3.902,4323.3,4323.2,2.3620014]
[1756873095009,0.116,4323.6,4323.5,2.3129409]
[1756873095210,3.901,4323.6,4323.5,2.3129409]
[1756873095525,3.901,4323.6,4323.5,2.3578409]
[1756873095926,3.901,4323.6,4323.5,0.0449]
[1756873096223,5.101,4323.6,4323.2,0.004]
[1756873096396,0.428,4323.5,4323.2,0.004]
[1756873096597,3.9,4323.4,4323.2,2.31709846]
[1756873096799,3.9,4323.4,4323.3,2.3130479]
[1756873097020,3.9,4323.4,4323.3,0.0449]
[1756873097228,3.9,4323.4,4323.3,2.3579479]
[1756873098841,0.001,4323.6,4323.5,2.3129409]
[1756873099143,3.9,4323.6,4323.5,2.3129409]
[1756873099320,3.9,4323.6,4323.5,2.3578409]
[1756873099642,3.9,4323.6,4323.5,2.3129409]
[1756873100023,0.001,4323.6,4323.5,2.3129409]
[1756873100333,0.001,4323.6,4323.3,0.116]
[1756873100334,4.671,4323.6,4323.3,0.116]
[1756873100536,4.671,4323.6,4323.3,2.42901382]
[1756873100537,0.428,4323.5,4323.3,2.42901382]
[1756873100738,3.899,4323.6,4323.4,2.3129944]
[1756873100919,3.899,4323.6,4323.5,2.3129409]
[1756873101241,3.899,4323.6,4323.5,2.3578409]
[1756873102013,3.899,4323.6,4323.5,0.0449]
[1756873102443,3.899,4323.6,4323.4,2.3129846]
[1756873102847,3.899,4323.6,4323.5,2.3129409]
[1756873103069,3.899,4323.6,4323.5,2.3578409]
[1756873103258,0.001,4323.6,4323.5,2.3129409]
[1756873103428,3.899,4323.6,4323.4,2.3129848]
[1756873103629,4.327,4323.6,4323.3,0.116]
[1756873104337,0.2948,4323.4,4323.3,0.116]
[1756873104538,5.3130479,4323.3,4323.2,0.004]
[1756873104855,6.2182479,4323.3,4323.2,0.004]
[1756873105061,6.5130479,4323.3,4323.2,0.004]
[1756873105472,6.60578121,4323.3,4323.2,0.004]
[1756873105763,7.92952563,4323.3,4323.2,0.004]
[1756873113280,15.08952563,4323.3,4323.2,0.004]
[1756873115778,12.77647773,4323.3,4323.2,0.004]
[1756873116072,16.67447773,4323.3,4323.2,0.004]
[1756873116448,12.77647773,4323.3,4323.2,0.004]
[1756873116671,16.67447773,4323.3,4323.2,0.004]
[1756873116849,18.98752563,4323.3,4323.2,0.004]
[1756873117250,18.55382563,4323.3,4323.2,0.004]
[1756873117453,18.98692563,4323.3,4323.2,0.004]
[1756873119475,11.57647773,4323.3,4323.2,0.004]
[1756873119678,14.15073331,4323.3,4323.2,0.0489]
[1756873119979,16.46378121,4323.3,4323.2,0.004]
[1756873120179,14.15073331,4323.3,4323.2,0.004]
[1756873120555,16.46378121,4323.3,4323.2,0.004]
[1756873120784,14.15073331,4323.3,4323.2,0.004]
[1756873120980,17.66178121,4323.3,4323.2,0.004]
[1756873121401,13.76378121,4323.3,4323.2,0.004]
[1756873121586,17.66178121,4323.3,4323.2,0.004]
[1756873121757,13.76378121,4323.3,4323.2,0.004]
[1756873121957,17.66178121,4323.3,4323.2,0.004]
[1756873123399,17.94651478,4323.3,4323.2,0.004]
[1756873124662,17.66178121,4323.3,4323.2,0.004]
[1756873132818,3.792,4322.9,4322.8,0.02]
[1756873132969,17.63556199,4322.9,4322.8,0.02]
[1756873133169,19.11829556,4322.9,4322.8,0.02]
[1756873133381,19.23429556,4322.9,4322.8,0.02]
[1756873133579,3.10536895,4322.7,4321.8,0.02]
[1756873133787,11.43109723,4321.9,4321.8,0.02]
[1756873134068,17.25349723,4321.9,4321.8,0.02]
[1756873134292,18.15809723,4321.9,4321.8,0.02]
[1756873134495,11.12960362,4321.9,4321.8,0.02]
[1756873135200,4.91780645,4321.9,4321.8,0.0649]
[1756873135400,8.645,4321.9,4321.8,0.0649]
[1756873135762,4.747,4321.9,4321.8,0.2241]
[1756873135964,5.529,4321.9,4321.8,0.2521]
[1756873136198,5.529,4321.9,4321.8,0.33310148]
[1756873136497,4.747,4321.9,4321.8,0.0649]
[1756873136679,8.645,4321.9,4321.8,0.2521]
[1756873136874,4.747,4321.9,4321.8,2.56595071]
[1756873137107,5.529,4321.9,4321.8,2.56595071]
[1756873137265,1.631,4321.9,4321.8,2.56595071]
[1756873137464,5.529,4321.9,4321.8,3.06553954]
[1756873138973,1.631,4321.9,4321.8,3.06553954]
[1756873139169,5.529,4321.9,4321.8,3.06553954]
[1756873140379,5.529,4321.9,4321.8,2.87833954]
[1756873141094,1.631,4321.9,4321.8,2.87833954]
[1756873141399,5.529,4321.9,4321.8,2.87833954]
[1756873141800,1.631,4321.9,4321.8,2.87833954]
[1756873141988,5.529,4321.9,4321.8,2.87833954]
[1756873142188,8.8248,4321.9,4321.8,0.02]
[1756873142505,8.645,4321.9,4321.4,2.31405543]
[1756873143131,8.645,4321.9,4321.3,0.116]
[1756873143132,4.747,4321.9,4321.8,0.0449]
[1756873143267,5.529,4321.9,4321.8,2.54595071]
[1756873143470,5.529,4321.9,4321.8,2.66195071]
[1756873143674,5.529,4321.9,4321.8,3.57246881]
[1756873143915,5.529,4321.9,4321.8,2.47475071]
[1756873145011,1.631,4321.9,4321.8,2.66195071]
[1756873145181,5.529,4321.9,4321.8,2.66195071]
[1756873145386,1.631,4322.7,4321.8,0.3712385]
[1756873145585,1.631,4322.7,4322.6,2.31342247]
[1756873145791,5.529,4322.7,4322.6,2.35832247]
[1756873149110,1.631,4322.7,4322.6,2.35832247]
[1756873149296,5.529,4322.7,4322.6,2.35832247]
[1756873149987,1.631,4322.7,4322.6,2.35832247]
[1756873150188,5.529,4322.7,4322.6,2.83710724]
[1756873150389,1.631,4322.7,4322.6,2.83710724]
[1756873150596,5.529,4322.7,4322.6,2.83710724]
[1756873151785,5.529,4322.7,4322.6,2.79220724]
[1756873152117,5.53,4322.7,4322.6,2.31342247]
[1756873152312,5.53,4322.7,4322.6,2.35832247]
[1756873157531,1.632,4322.7,4322.6,2.35832247]
[1756873158233,0.001,4322.7,4322.6,2.35832247]
[1756873158416,3.898,4322.7,4322.6,2.54552247]
[1756873158738,0.001,4322.7,4322.6,3.04302724]
[1756873159402,0.001,4322.7,4322.6,3.15902724]
[1756873159604,0.001,4322.7,4322.6,3.13102724]
[1756873160207,0.001,4322.7,4322.6,2.97182724]
[1756873160596,0.001,4322.7,4322.6,3.13102724]
[1756873161031,0.001,4322.7,4322.6,2.97182724]
[1756873164238,0.001,4322.7,4322.6,6.86882724]
[1756873164436,0.001,4322.7,4322.6,2.97182724]
[1756873165943,0.7373,4322.7,4322.6,2.92692724]
[1756873166138,1.1981,4322.7,4322.6,2.92692724]
[1756873166858,0.4415,4322.7,4322.6,2.92692724]
[1756873167159,0.001,4322.7,4322.6,2.97182724]
[1756873167661,0.001,4322.7,4322.6,2.92692724]
[1756873168353,0.001,4322.7,4322.6,2.97182724]
[1756873168660,0.001,4322.7,4322.6,2.99496146]
[1756873170357,0.001,4322.7,4322.6,2.97182724]
[1756873175682,0.001,4322.7,4322.6,2.92692724]
[1756873177774,0.001,4322.7,4322.6,2.97182724]
[1756873177956,0.2903,4322.7,4322.6,2.92692724]
[1756873178160,1.2074,4322.7,4322.6,2.42942247]
[1756873183162,1.2074,4322.7,4322.2,2.31360081]
[1756873183364,1.2074,4322.7,4322.4,2.3134808]
[1756873183365,0.9171,4322.6,4322.4,2.3134808]
[1756873183565,1.2064,4322.5,4322.4,2.3134808]
[1756873185386,1.90188687,4322.5,4322.4,2.3134808]
[1756873185702,1.2064,4322.5,4322.4,2.3134808]
[1756873185894,1.90188687,4322.5,4322.4,2.3134808]
[1756873186094,1.2064,4322.5,4322.4,2.3134808]
[1756873186401,1.90188687,4322.5,4322.4,2.3134808]
[1756873186604,1.2064,4322.5,4322.4,2.3134808]
[1756873187784,3.897,4322.7,4322.5,2.31347599]
[1756873187989,3.897,4322.7,4322.6,2.31342247]
[1756873188201,5.1034,4322.7,4322.6,2.31342247]
[1756873188909,0.001,4322.7,4322.6,2.31342247]
[1756873191286,0.2903,4322.7,4322.6,2.31342247]
[1756873191499,1.2074,4322.7,4322.6,2.31342247]
[1756873192816,0.001,4322.7,4322.6,2.31342247]
[1756873193118,0.001,4322.7,4322.6,2.33655669]
[1756873193320,0.001,4322.7,4322.6,2.31342247]
[1756873193718,0.001,4322.7,4322.6,2.83261232]
[1756873194106,0.001,4322.7,4322.6,6.75174654]
[1756873194299,0.001,4322.7,4322.6,6.72861232]
[1756873198713,1e-08,4322.8,4322.7,3.10536895]
[1756873198894,1e-08,4322.8,4322.7,5.03673419]
[1756873199099,1e-08,4322.8,4322.7,5.19763419]
[1756873199317,1e-08,4323.2,4323.1,3.10515491]
[1756873199632,1e-08,4323.2,4323.1,14.44862606]
[1756873199808,1e-08,4323.2,4323.1,14.49352606]
[1756873200010,1e-08,4323.2,4323.1,16.19292191]
[1756873200216,1e-08,4323.2,4323.1,12.29792191]
[1756873200415,1e-08,4323.2,4323.1,16.19292191]
[1756873203617,1e-08,4323.2,4323.1,4.12855076]
[1756873203618,1.26040001,4323.2,4323.1,4.12855076]
[1756873203813,1.26040001,4323.2,4323.1,0.116]
[1756873204014,1.26040001,4323.2,4322.9,0.116]
[1756873204242,1.631,4323.1,4322.9,0.116]
[1756873205049,1.631,4323.1,4323.0,2.31320842]
[1756873205216,5.8356,4323.1,4323.0,2.31320842]
[1756873205410,5.8356,4323.1,4322.9,0.116]
[1756873205614,0.9508,4323.0,4322.9,2.42926193]
[1756873206125,1.2604,4323.0,4322.9,2.42926193]
[1756873206646,5.1554,4323.0,4322.9,2.42926193]
[1756873208650,5.1564,4323.0,4322.9,2.42926193]
[1756873210557,1.2614,4323.0,4322.9,2.42926193]
[1756873210763,5.1564,4323.0,4322.9,2.42926193]
[1756873211562,0.001,4323.0,4322.9,2.97155672]
[1756873211857,0.001,4323.0,4322.9,2.94842411]
[1756873212058,1e-08,4323.2,4322.9,8.12683333]
[1756873212258,1e-08,4323.2,4323.1,3.10515491]
[1756873212662,1e-08,4323.2,4323.1,3.15005491]
[1756873212871,1e-08,4323.2,4323.1,5.07662363]
[1756873213439,1e-08,4323.2,4323.1,11.07535124]
[1756873214672,1e-08,4323.2,4323.1,10.88815124]
[1756873215572,1e-08,4323.2,4323.1,11.04735124]
[1756873215875,1e-08,4323.2,4323.1,10.88815124]
[1756873222085,1.26040001,4323.2,4323.1,4.05252363]
[1756873223254,0.77560001,4323.2,4323.1,4.05252363]
[1756873223586,1e-08,4323.2,4323.1,8.01455517]
[1756873223890,1e-08,4323.2,4323.1,8.10742363]
[1756873224052,0.02,4323.8,4323.7,8.31156152]
[1756873224386,0.02,4323.8,4323.7,6.20583391]
[1756873224594,0.8144,4323.8,4323.7,6.32183391]
[1756873224888,1.2804,4323.8,4323.7,6.32183391]
[1756873225904,0.7956,4323.8,4323.7,6.32183391]
[1756873226202,0.02,4323.8,4323.7,7.2302086]
[1756873227002,0.02,4323.8,4323.7,13.22893621]
[1756873227205,0.001,4323.9,4323.8,2.31278042]
[1756873227206,1e-08,4323.9,4323.8,2.31278042]
[1756873227598,1e-08,4323.9,4323.8,2.35768042]
[1756873227910,1e-08,4323.9,4323.8,4.26841123]
[1756873229110,1e-08,4323.9,4323.8,10.66841123]
[1756873229919,0.001,4324.3,4324.2,2.31256648]
[1756873230208,0.001,4324.3,4324.2,6.20556648]
[1756873230376,0.4697,4324.3,4324.2,6.32156648]
[1756873230576,0.001,4324.3,4324.2,7.78486323]
[1756873231184,0.001,4324.3,4324.2,8.62176323]
[1756873231713,0.9493,4325.2,4324.3,0.792]
[1756873231925,0.9493,4325.2,4324.8,5.99872761]
[1756873232210,0.001,4325.8,4325.7,2.31176456]
[1756873232587,1.2551,4325.8,4325.7,2.31176456]
[1756873236025,1.2551,4325.8,4325.6,0.1152]
[1756873236231,1.2551,4325.8,4325.6,2.42701256]
[1756873236531,0.3058,4325.8,4325.7,2.31176456]
[1756873236729,0.3058,4325.8,4325.6,2.42701552]
[1756873236902,0.9493,4325.7,4325.6,2.42701552]
[1756873237101,1.2541,4325.7,4325.6,2.42701552]
[1756873239329,1.2541,4325.7,4325.6,0.1152]
[1756873239718,1.2541,4325.7,4325.6,2.42701801]
[1756873240121,1.2541,4325.7,4325.6,2.31181801]
[1756873242436,1.2541,4325.7,4325.6,2.42701801]
[1756873244335,0.7854,4325.7,4325.6,2.42701801]
[1756873244541,1.2541,4325.7,4325.6,2.42701801]
[1756873246743,1.2551,4325.7,4325.6,2.42701801]
[1756873248039,1.2551,4325.7,4325.6,2.31181801]
[1756873249923,1.39223,4325.7,4325.4,0.1152]
[1756873250143,1.39223,4325.7,4325.1,0.116]
[1756873250144,5.99872761,4325.5,4325.1,0.116]
[1756873250352,5.99872761,4325.5,4325.1,2.42807629]
[1756873250657,0.3048,4325.2,4325.1,2.42807629]
[1756873251040,1.2541,4325.2,4325.1,2.42807629]
[1756873251225,0.3048,4325.2,4325.1,2.42807629]
[1756873251556,0.4687,4325.4,4325.3,2.31197835]
[1756873251769,3.891,4325.6,4325.5,2.31187145]
[1756873251986,0.1162,4325.7,4325.6,2.31181801]
[1756873252131,4.0062,4325.7,4325.6,2.31181801]
[1756873252327,5.2603,4325.7,4325.6,2.31181801]
[1756873253782,5.1451,4325.7,4325.3,0.1152]
[1756873254087,5.1451,4325.7,4324.9,2.42819218]
[1756873254088,6.11392761,4325.6,4324.9,2.42819218]
[1756873254244,5.74073244,4325.7,4324.9,2.31214923]
[1756873254245,0.3048,4325.0,4324.9,2.31214923]
[1756873254445,1.2541,4325.0,4324.9,2.31214923]
[1756873254984,1.2541,4325.0,4324.8,0.02]
[1756873255158,0.3048,4325.0,4324.9,2.31219218]
[1756873255360,0.7735,4325.0,4324.9,2.31219218]
[1756873255561,0.7735,4325.0,4324.8,2.33223629]
[1756873255863,0.9493,4324.9,4324.8,2.33224565]
[1756873256054,1.2541,4324.9,4324.8,2.33224565]
[1756873257790,1.2541,4324.9,4324.8,0.02]
[1756873257948,2.36838276,4324.9,4324.8,0.02]
[1756873258148,6.25838276,4324.9,4324.8,0.02]
[1756873258783,6.37438276,4324.9,4324.8,0.02]
[1756873260343,9.37438276,4324.9,4324.8,0.02]
[1756873260544,11.68657494,4324.9,4324.8,0.02]
[1756873261486,9.37438276,4324.9,4324.8,0.02]
[1756873261661,8.2601,4324.9,4324.8,0.02]
[1756873261976,10.57229218,4324.9,4324.8,0.02]
[1756873262547,4.3701,4324.9,4324.8,0.02]
[1756873262756,8.2601,4324.9,4324.8,0.02]
[1756873263160,4.3701,4324.9,4324.8,0.02]
[1756873263377,9.52819855,4324.9,4324.8,0.02]
[1756873268682,11.84039073,4324.9,4324.8,0.02]
[1756873275509,19.16913972,4324.9,4324.8,0.02]
[1756873282518,19.17013972,4324.9,4324.8,0.02]
[1756873283095,11.84139073,4324.9,4324.8,0.02]
[1756873283305,19.17013972,4324.9,4324.8,0.02]
[1756873290441,3.001,4324.9,4324.8,0.0649]
[1756873290605,7.006,4324.9,4324.8,0.0649]
[1756873291241,3.117,4324.9,4324.8,0.0649]
[1756873291451,0.001,4325.8,4324.9,2.31219218]
[1756873291654,0.001,4325.8,4325.6,0.1152]
[1756873291937,0.001,4325.8,4325.6,2.7146305]
[1756873292321,0.001,4325.8,4325.6,3.40788231]
[1756873292839,0.001,4325.8,4325.6,3.50052669]
[1756873294153,0.001,4326.2,4325.8,2.31171112]
[1756873294626,1.133,4326.6,4326.2,2.31149738]
[1756873294627,1e-08,4326.4,4326.2,2.31149738]
[1756873294824,1e-08,4326.4,4326.3,2.68090812]
[1756873295128,1e-08,4326.4,4326.3,2.75380812]
[1756873295323,1e-08,4326.6,4326.5,2.3113371]
[1756873295553,1e-08,4326.6,4326.5,2.33445047]
[1756873295851,0.1152,4327.5,4327.1,2.31099378]
[1756873296054,0.78,4327.7,4327.2,0.23109938]
[1756873296357,1.63,4327.9,4327.5,2.470903]
[1756873298126,0.001,4328.1,4327.5,2.470903]
[1756873298353,3.001,4328.1,4327.5,2.470903]
[1756873298553,0.001,4328.1,4327.5,2.470903]
[1756873299042,0.001,4328.1,4327.5,2.498903]
[1756873302562,1e-08,4327.6,4327.5,6.366903]
[1756873302724,1e-08,4327.6,4327.5,4.16469422]
[1756873303071,1e-08,4327.6,4327.5,8.06069422]
[1756873303574,1e-08,4327.6,4327.5,8.08869422]
[1756873305443,1e-08,4327.6,4327.5,8.88069422]
[1756873305645,1e-08,4327.6,4327.5,11.88069422]
[1756873306082,1e-08,4327.6,4327.5,18.28069422]
[1756873306759,1e-08,4327.6,4327.5,18.37329164]
[1756873307090,1e-08,4327.6,4327.5,18.34529164]
[1756873307630,1e-08,4327.6,4327.5,18.34229164]
[1756873310384,1e-08,4327.6,4327.5,10.82761675]
[1756873310531,0.29190001,4327.6,4327.5,8.18111933]
[1756873310739,0.77210001,4327.6,4327.5,8.18111933]
[1756873311068,1e-08,4327.6,4327.5,8.22601933]
[1756873311730,1e-08,4327.6,4327.5,8.18111933]
[1756873311928,1.22610001,4327.6,4327.5,8.18111933]
[1756873312128,1.22610001,4327.6,4327.5,8.18011933]
[1756873312827,1.22610001,4327.6,4327.5,4.29011933]
[1756873313062,1.22610001,4327.6,4327.5,6.48632811]
[1756873315247,0.45400001,4327.6,4327.5,6.48632811]
[1756873315442,0.45400001,4327.6,4327.5,2.59632811]
[1756873315643,0.29190001,4327.6,4327.5,6.48532811]
[1756873315962,1.22610001,4327.6,4327.5,2.59632811]
[1756873316167,1.22610001,4327.6,4327.5,7.16106184]
[1756873316370,1.22610001,4327.6,4327.5,3.27306184]
[1756873316538,1.22610001,4327.6,4327.5,7.16106184]
[1756873317140,1.22610001,4327.6,4327.5,7.16006184]
[1756873317336,1.22610001,4327.6,4327.5,3.27306184]
[1756873317535,1.22610001,4327.6,4327.5,4.0022]
[1756873317857,1.22610001,4327.6,4327.2,2.3109632]
[1756873318171,0.9342,4327.5,4327.3,2.3109042]
[1756873318366,1e-08,4327.6,4327.5,0.004]
[1756873318563,0.29190001,4327.6,4327.5,0.004]
[1756873318873,1.22610001,4327.6,4327.5,0.004]
[1756873320873,1.22610001,4327.6,4327.5,2.314803]
[1756873321279,1.22610001,4327.6,4327.5,2.53031999]
[1756873322241,1.22610001,4327.6,4327.5,0.21951699]
[1756873323075,1.22610001,4327.6,4327.5,2.53031999]
[1756873323440,3.00509445,4328.3,4327.5,2.53031999]
[1756873323441,0.02,4328.8,4328.5,2.31026914]
[1756873323565,0.02,4328.8,4328.7,2.3101624]
[1756873323755,1e-08,4329.1,4329.0,2.31000231]
[1756873324068,1e-08,4329.1,4329.0,6.4734193]
[1756873324268,1e-08,4329.1,4329.0,7.64681565]
[1756873324444,1e-08,4329.1,4329.0,8.67050565]
[1756873327584,1e-08,4329.1,4329.0,8.64250565]
[1756873327986,1e-08,4329.1,4329.0,8.52720565]
[1756873328355,1e-08,4329.1,4329.0,8.67050565]
[1756873328757,1e-08,4329.1,4329.0,8.52720565]
[1756873329154,0.04,4329.8,4329.0,8.52720565]
[1756873329155,1e-08,4329.5,4329.4,3.10178888]
[1756873329362,1e-08,4329.5,4329.4,12.38747199]
[1756873329576,1e-08,4329.5,4329.4,12.43237199]
[1756873329773,1e-08,4329.5,4329.4,12.88907199]
[1756873330588,1e-08,4329.5,4329.4,12.91707199]
[1756873330958,1e-08,4329.8,4329.7,2.30962884]
[1756873331161,1e-08,4329.8,4329.7,7.8801381]
[1756873331382,1e-08,4329.8,4329.7,7.9250381]
[1756873331557,1e-08,4329.8,4329.7,8.7170381]
[1756873333389,1e-08,4329.8,4329.7,8.8322381]
[1756873334182,1e-08,4329.8,4329.7,9.3158381]
[1756873334394,1e-08,4329.8,4329.7,9.3138381]
[1756873334596,0.29880001,4329.8,4329.7,4.5789381]
[1756873334765,1.23910001,4329.8,4329.7,8.4769381]
[1756873336161,1.24010001,4329.8,4329.7,8.4769381]
[1756873336904,1.24010001,4329.8,4329.7,4.5789381]
[1756873337197,1.24010001,4329.8,4329.7,8.4759381]
[1756873340320,1.24010001,4329.8,4329.7,8.4739381]
[1756873340522,0.00100001,4329.8,4329.7,8.4739381]
[1756873341020,1.24010001,4329.8,4329.7,8.4739381]
[1756873341628,1.24010001,4329.8,4329.7,4.5789381]
[1756873341927,1.24010001,4329.8,4329.7,8.4729381]
[1756873344028,0.00100001,4329.8,4329.7,8.4729381]
[1756873344238,0.00100001,4329.8,4329.7,8.5178381]
[1756873345420,0.00100001,4329.8,4329.7,14.49881635]
[1756873345619,0.001,4330.3,4330.2,2.30936215]
[1756873345898,0.4577,4330.3,4330.2,6.66124231]
[1756873346126,1.2401,4330.3,4330.2,6.9919593]
[1756873347227,0.001,4330.3,4330.2,6.9919593]
[1756873347429,0.001,4330.3,4330.2,7.0368593]
[1756873348526,0.4577,4330.7,4330.6,2.30914884]
[1756873348720,0.4577,4330.7,4330.6,6.87650335]
[1756873349025,0.4577,4330.7,4330.6,6.99170335]
[1756873349427,0.7565,4330.7,4330.6,6.99170335]
[1756873349755,0.7565,4330.7,4330.6,7.03660335]
[1756873349756,1e-08,4330.7,4330.6,7.03660335]
[1756873350101,1e-08,4330.7,4330.6,7.73060842]
[1756873350532,1e-08,4330.7,4330.6,14.13060842]
[1756873351037,1e-08,4330.7,4330.6,14.92260842]
[1756873352516,1e-08,4330.7,4330.6,11.03260842]
[1756873352716,1e-08,4330.7,4330.6,20.90458667]
[1756873352910,1e-08,4330.7,4330.6,17.01358667]
[1756873353139,1.23360001,4330.7,4330.6,10.98770842]
[1756873353340,1.23360001,4330.7,4330.6,14.08570842]
[1756873354018,1.23360001,4330.7,4330.6,10.19570842]
[1756873354219,1.23360001,4330.7,4330.6,9.50170335]
[1756873354413,1.23360001,4330.7,4330.6,13.39170335]
[1756873354944,1.23360001,4330.7,4330.6,6.99170335]
[1756873355110,1.23360001,4330.7,4330.6,6.52986583]
[1756873356840,1.23360001,4330.7,4330.6,6.52886583]
[1756873357258,0.44320001,4330.7,4330.6,6.52886583]
[1756873358548,0.74960001,4330.7,4330.6,6.52786583]
[1756873358750,1.23360001,4330.7,4330.6,6.52786583]
[1756873359518,0.74960001,4330.7,4330.6,8.05807288]
[1756873360047,1.23360001,4330.7,4330.6,8.05807288]
[1756873360213,1e-08,4330.7,4330.6,8.10297288]
[1756873360414,1e-08,4330.8,4330.7,2.30909552]
[1756873360639,1e-08,4330.8,4330.7,4.79252048]
[1756873360842,1e-08,4330.8,4330.7,4.83742048]
[1756873361219,1e-08,4330.8,4330.7,11.68062048]
[1756873362759,1.23360001,4330.8,4330.7,6.85381251]
[1756873363257,1.23360001,4330.8,4330.7,6.41061251]
[1756873363862,0.74960001,4330.8,4330.7,6.41061251]
[1756873364356,0.44320001,4330.8,4330.7,6.41061251]
[1756873364558,0.44320001,4330.8,4330.7,8.60160874]
[1756873364724,1e-08,4330.8,4330.7,8.60160874]
[1756873365248,0.44320001,4330.8,4330.7,8.60160874]
[1756873365445,0.74960001,4330.8,4330.7,8.60160874]
[1756873365760,1.23360001,4330.8,4330.7,8.60160874]
[1756873365965,1.23360001,4330.8,4330.7,6.40961251]
[1756873366262,1.23360001,4330.8,4330.7,2.52461251]
[1756873366432,1.23360001,4330.8,4330.7,6.40961251]
[1756873367240,1.23360001,4330.8,4330.7,6.40861251]
[1756873368043,1e-08,4330.8,4330.7,9.40861251]
[1756873368376,1e-08,4330.8,4330.7,17.02718917]
[1756873368758,1e-08,4330.8,4330.7,17.07482553]
[1756873369069,1e-08,4330.8,4330.7,17.11972553]
[1756873370843,1e-08,4330.8,4330.7,23.51972553]
[1756873372379,1e-08,4330.8,4330.7,23.47482553]
[1756873372671,1e-08,4330.8,4330.7,19.59082553]
[1756873372871,0.74960001,4330.8,4330.7,23.47482553]
[1756873373045,1e-08,4330.8,4330.7,23.47482553]
[1756873373447,1e-08,4330.8,4330.7,17.49384728]
[1756873374460,0.74960001,4330.8,4330.7,13.60984728]
[1756873374662,0.74960001,4330.8,4330.7,17.49384728]
[1756873374947,0.44320001,4330.8,4330.7,17.49384728]
[1756873375343,1.23360001,4330.8,4330.7,13.60984728]
[1756873375581,1.23360001,4330.8,4330.7,15.90114887]
[1756873376077,1e-08,4330.8,4330.7,15.90114887]
[1756873378549,1.23360001,4330.8,4330.7,15.90114887]
[1756873378788,1.23360001,4330.8,4330.7,12.90114887]
[1756873379169,1.23360001,4330.8,4330.7,8.92461251]
[1756873379369,1.23360001,4330.8,4330.7,12.80861251]
[1756873380398,1.23360001,4330.8,4330.7,8.92461251]
[1756873380549,0.92720001,4330.8,4330.7,13.27396223]
[1756873380754,0.44320001,4330.8,4330.7,13.27396223]
[1756873381067,1.24390001,4330.8,4330.7,13.27396223]
[1756873382652,1.24390001,4330.8,4330.7,9.38996223]
[1756873382882,1.24390001,4330.8,4330.7,13.27396223]
[1756873383390,1e-08,4330.8,4330.7,13.27396223]
[1756873383607,1e-08,4330.8,4330.7,13.31886223]
[1756873386180,1e-08,4330.8,4330.7,13.3198999]
[1756873387080,1e-08,4330.8,4330.7,9.3909999]
[1756873387406,0.44290001,4330.8,4330.7,13.2749999]
[1756873387768,1e-08,4330.8,4330.7,13.2749999]
[1756873388384,1e-08,4330.8,4330.7,14.9019999]
[1756873389607,1e-08,4330.8,4330.7,14.90202936]
[1756873389790,0.44290001,4330.8,4330.7,14.90202936]
[1756873389981,1e-08,4330.8,4330.7,14.90202936]
[1756873390175,1e-08,4330.8,4330.7,15.73892936]
[1756873393685,1e-08,4330.8,4330.7,15.73892931]
[1756873394282,0.44290001,4330.8,4330.7,11.81002931]
[1756873394580,0.44290001,4330.8,4330.7,15.69302931]
[1756873394779,1e-08,4330.8,4330.7,15.69302931]
[1756873395610,1e-08,4330.8,4330.7,15.73792931]
[1756873396277,1e-08,4330.8,4330.7,15.69302931]
[1756873397305,1e-08,4330.8,4330.7,15.73792931]
[1756873397910,1e-08,4330.8,4330.7,18.73792931]
[1756873400700,1e-08,4330.8,4330.7,15.73792931]
[1756873401620,0.74680001,4330.8,4330.7,15.69302931]
[1756873401916,1.24360001,4330.8,4330.7,11.81002931]
[1756873402118,1.24360001,4330.8,4330.7,15.69302931]
[1756873402333,0.44290001,4330.8,4330.7,15.69302931]
[1756873402493,1e-08,4330.8,4330.7,15.69302931]
[1756873403194,1e-08,4330.8,4330.7,15.73792931]
[1756873403828,1e-08,4330.8,4330.7,15.69302931]
[1756873404335,1.24360001,4330.8,4330.7,11.81002931]
[1756873404633,1.24360001,4330.8,4330.7,15.69302931]
[1756873405038,1.24360001,4330.8,4330.7,11.81002931]
[1756873405250,1.24360001,4330.8,4330.7,15.69302931]
[1756873405736,1.24360001,4330.8,4330.7,11.01802931]
[1756873405906,1.24360001,4330.8,4330.7,8.03567959]
[1756873407205,0.80070001,4330.8,4330.7,8.03567959]
[1756873407400,1e-08,4330.8,4330.7,8.03567959]
[1756873407845,1e-08,4330.8,4330.7,8.15087959]
[1756873408534,0.74680001,4330.8,4330.7,8.15087959]
[1756873408746,1.24360001,4330.8,4330.7,4.26787959]
[1756873409240,1.24360001,4330.8,4330.7,8.15087959]
[1756873410147,1e-08,4330.8,4330.7,15.61486073]
[1756873410350,1e-08,4330.8,4330.7,16.45176073]
[1756873417431,0.001,4331.7,4331.5,3.10066905]
[1756873417632,1e-08,4331.8,4331.6,14.52498501]
[1756873417838,1e-08,4331.8,4331.7,4.93234502]
[1756873418154,1e-08,4331.8,4331.7,11.37724502]
[1756873418322,1e-08,4331.8,4331.7,11.33234502]
[1756873419345,1e-08,4331.8,4331.7,11.37724502]
[1756873420358,1e-08,4331.8,4331.7,11.84804502]
[1756873420656,1e-08,4331.8,4331.7,12.32374844]
[1756873421356,1e-08,4331.8,4331.7,11.85294844]
[1756873421661,1e-08,4331.8,4331.7,11.85284183]